bitfinex-derivatives/quotes_ETHF0:USTF0_20230902
["timestamp","ask_amount","ask_price","bid_price","bid_amount"]
[1693664324211,9.79582352,1638.4,1638.3,7.0822711]
[1693664324905,6.92866,1638.4,1638.3,7.0822711]
[1693664325310,9.79582352,1638.4,1638.3,7.0822711]
[1693664326011,6.92866,1638.4,1638.3,7.0822711]
[1693664326409,9.79582352,1638.4,1638.3,7.0822711]
[1693664327306,7.50660352,1638.4,1638.3,7.0822711]
[1693664327706,9.79582352,1638.4,1638.3,7.0822711]
[1693664328612,9.79582352,1638.4,1638.3,6.88056875]
[1693664330012,4.63944,1638.4,1638.3,6.88056875]
[1693664330317,4.63944,1638.4,1638.3,7.0822711]
[1693664330517,9.79582352,1638.4,1638.3,7.0822711]
[1693664332216,6.92866,1638.4,1638.3,7.0822711]
[1693664333919,9.79582352,1638.4,1638.3,6.88056875]
[1693664335328,12.08504352,1638.4,1638.3,4.59120875]
[1693664336327,9.79582352,1638.4,1638.3,6.88056875]
[1693664337325,12.08504352,1638.4,1638.3,6.88056875]
[1693664337532,17.57804352,1638.4,1638.3,0.01248875]
[1693664337728,1.98437838,1638.3,1638.2,2.2895]
[1693664337932,16.63481838,1638.3,1638.2,2.2895]
[1693664338427,16.63481838,1638.3,1638.2,2.30261935]
[1693664339331,16.63481838,1638.3,1638.2,4.59211935]
[1693664350038,16.63481838,1638.3,1638.2,0.01311935]
[1693664350239,17.12645022,1638.3,1638.2,0.01311935]
[1693664350429,22.12245022,1638.3,1638.2,0.01311935]
[1693664354139,2.86716352,1638.2,1638.0,6.86916]
[1693664354339,16.63593838,1638.1,1638.0,6.86916]
[1693664362248,16.63593838,1638.1,1638.0,6.88082026]
[1693664369149,16.63593838,1638.1,1638.0,0.01166026]
[1693664369643,21.60983838,1638.1,1638.0,0.01166026]
[1693664370253,21.60983838,1638.1,1638.0,2.28978]
[1693664371355,21.60983838,1638.1,1638.0,2.30096706]
[1693664374252,21.60983838,1638.1,1638.0,2.50266941]
[1693664374453,21.60983838,1638.1,1638.0,2.30096706]
[1693664382866,10.07218,1638.2,1638.0,9.37200941]
[1693664383160,12.36178,1638.2,1638.0,9.37200941]
[1693664383361,12.36178,1638.2,1638.1,2.26993648]
[1693664383763,12.36178,1638.2,1638.1,9.13885648]
[1693664384264,12.36178,1638.2,1638.1,9.15105943]
[1693664389960,15.22894352,1638.2,1638.1,9.15105943]
[1693664391572,12.36178,1638.2,1638.1,9.15105943]
[1693664391873,6.86878,1638.2,1638.1,9.15105943]
[1693664393376,9.73594352,1638.2,1638.1,9.15105943]
[1693664396073,6.86878,1638.2,1638.1,9.15105943]
[1693664396469,6.86878,1638.2,1638.1,11.44069943]
[1693664399572,6.86878,1638.2,1638.1,9.17076295]
[1693664400575,6.86878,1638.2,1638.1,6.88112295]
[1693664401879,12.36178,1638.2,1638.1,6.88112295]
[1693664402575,15.22894352,1638.2,1638.1,6.88112295]
[1693664402779,12.36178,1638.2,1638.1,6.88112295]
[1693664402977,10.07217,1638.2,1638.1,9.17076295]
[1693664403181,12.36177,1638.2,1638.1,9.17076295]
[1693664404582,10.07217,1638.2,1638.1,9.17076295]
[1693664404777,5.07048184,1638.3,1638.1,14.66376295]
[1693664404981,2.78103184,1638.3,1638.2,2.47163883]
[1693664405181,5.07042184,1638.3,1638.2,11.62963883]
[1693664405386,5.07042184,1638.3,1638.2,11.64183216]
[1693664406987,4.57879,1638.3,1638.2,11.64183216]
[1693664407282,6.86818,1638.3,1638.2,11.64183216]
[1693664408987,9.73534352,1638.3,1638.2,11.64183216]
[1693664409288,6.86818,1638.3,1638.2,11.64183216]
[1693664410688,9.73534352,1638.3,1638.2,11.64183216]
[1693664410885,6.86818,1638.3,1638.2,11.64183216]
[1693664413894,9.73534352,1638.3,1638.2,11.64183216]
[1693664414697,6.86818,1638.3,1638.2,11.64183216]
[1693664416791,6.86818,1638.3,1638.2,9.17019333]
[1693664416998,9.73534352,1638.3,1638.2,9.17019333]
[1693664417599,9.73534352,1638.3,1638.2,9.37189568]
[1693664418805,9.73534352,1638.3,1638.2,9.17019333]
[1693664419197,9.73534352,1638.3,1638.2,9.37189568]
[1693664419397,6.86818,1638.3,1638.2,9.37189568]
[1693664422013,9.73534352,1638.3,1638.2,9.37189568]
[1693664423207,6.86818,1638.3,1638.2,9.37189568]
[1693664439623,9.73534352,1638.3,1638.2,9.37189568]
[1693664441125,6.86818,1638.3,1638.2,9.37189568]
[1693664441727,9.73534352,1638.3,1638.2,9.37189568]
[1693664442223,6.86818,1638.3,1638.2,9.37189568]
[1693664448623,9.73534352,1638.3,1638.2,9.17019333]
[1693664449428,9.73534352,1638.3,1638.2,9.37189568]
[1693664449727,9.73534352,1638.3,1638.2,9.17019333]
[1693664451430,9.73534352,1638.3,1638.2,9.37189568]
[1693664452831,9.73534352,1638.3,1638.2,9.17019333]
[1693664453335,9.73534352,1638.3,1638.2,9.37189568]
[1693664454034,9.73534352,1638.3,1638.2,9.17019333]
[1693664455438,9.73534352,1638.3,1638.2,9.37189568]
[1693664455835,9.73534352,1638.3,1638.2,9.17019333]
[1693664456540,9.73534352,1638.3,1638.2,9.37189568]
[1693664457537,17.51773352,1638.3,1638.0,4.57934]
[1693664457731,5.554,1638.1,1638.0,2.28965]
[1693664457931,17.57972352,1638.1,1638.0,2.28965]
[1693664458333,17.57972352,1638.1,1638.0,2.30229832]
[1693664459132,17.57972352,1638.1,1638.0,0.01264832]
[1693664465342,17.51872352,1638.1,1638.0,0.01264832]
[1693664469843,17.51872352,1638.1,1638.0,2.30242832]
[1693664471847,17.51872352,1638.1,1638.0,0.01264832]
[1693664472048,18.00763276,1638.1,1638.0,0.01264832]
[1693664485659,1.98437838,1638.0,1637.9,2.5147]
[1693664485854,16.63649838,1638.0,1637.9,4.80462]
[1693664486255,16.63649838,1638.0,1637.9,4.81632872]
[1693664488959,16.63649838,1638.0,1637.9,7.10624872]
[1693664490661,16.69749838,1638.0,1637.9,7.10624872]
[1693664491057,16.69749838,1638.0,1637.9,0.01170872]
[1693664491258,16.69749838,1638.0,1637.8,4.58002]
[1693664491457,21.63079838,1638.0,1637.8,4.58002]
[1693664491861,5.493,1637.9,1637.8,4.58002]
[1693664492056,17.51984352,1637.9,1637.8,2.29]
[1693664492259,17.51984352,1637.9,1637.8,2.30251457]
[1693664494370,17.51984352,1637.9,1637.8,4.59257457]
[1693664495165,17.51984352,1637.9,1637.8,0.01251457]
[1693664497265,27.73419869,1637.9,1637.8,0.01251457]
[1693664497569,27.73422513,1637.9,1637.8,0.01251457]
[1693664498370,27.73422513,1637.9,1637.7,6.87047]
[1693664498670,16.69861838,1637.8,1637.7,4.5803]
[1693664501367,16.69861838,1637.8,1637.7,4.59142574]
[1693664506864,16.63761838,1637.8,1637.7,4.59142574]
[1693664510979,16.63761838,1637.8,1637.7,2.30125574]
[1693664527087,25.43666119,1637.8,1637.7,2.30125574]
[1693664530095,21.16222281,1637.8,1637.7,4.79315809]
[1693664530285,21.16222281,1637.8,1637.7,7.08335809]
[1693664530893,12.36318,1637.8,1637.7,7.08335809]
[1693664532596,14.65324,1637.8,1637.7,7.08335809]
[1693664533590,12.36318,1637.8,1637.7,7.08335809]
[1693664534296,14.65324,1637.8,1637.7,4.79315809]
[1693664535897,23.45228281,1637.8,1637.7,4.79315809]
[1693664536901,23.45228281,1637.8,1637.7,4.59145574]
[1693664537493,23.45228281,1637.8,1637.7,4.79315809]
[1693664537901,23.45228281,1637.8,1637.7,4.59145574]
[1693664539401,23.45228281,1637.8,1637.7,4.79315809]
[1693664543105,23.45228281,1637.8,1637.7,4.59145574]
[1693664544708,23.45228281,1637.8,1637.7,4.79315809]
[1693664547603,23.45228281,1637.8,1637.7,4.59145574]
[1693664549902,23.45228281,1637.8,1637.7,4.79315809]
[1693664555115,21.16222281,1637.8,1637.7,4.79315809]
[1693664555823,23.45228281,1637.8,1637.7,4.79315809]
[1693664557427,21.16222281,1637.8,1637.7,4.79315809]
[1693664558314,23.45228281,1637.8,1637.7,4.79315809]
[1693664559527,21.16222281,1637.8,1637.7,7.08335809]
[1693664560026,23.45228281,1637.8,1637.7,4.79315809]
[1693664565230,21.16222281,1637.8,1637.7,7.08335809]
[1693664565526,21.16222281,1637.8,1637.7,4.79315809]
[1693664565729,23.45228281,1637.8,1637.7,4.79315809]
[1693664566230,21.16222281,1637.8,1637.7,4.79315809]
[1693664566424,21.16222281,1637.8,1637.7,7.08335809]
[1693664566728,21.16222281,1637.8,1637.7,4.79315809]
[1693664567229,23.45228281,1637.8,1637.7,4.79315809]
[1693664574337,23.47147203,1637.8,1637.7,4.79315809]
[1693664575936,23.47147203,1637.8,1637.7,4.59145574]
[1693664576639,23.47147203,1637.8,1637.7,4.79315809]
[1693664579544,33.69097783,1637.8,1637.7,4.79315809]
[1693664580339,23.47147203,1637.8,1637.7,4.79315809]
[1693664580943,14.65324,1637.8,1637.7,4.79315809]
[1693664581144,24.8727458,1637.8,1637.7,4.79315809]
[1693664581348,14.65324,1637.8,1637.7,4.79315809]
[1693664581942,14.65324,1637.8,1637.7,4.59145574]
[1693664582944,14.65324,1637.8,1637.7,4.79315809]
[1693664583150,14.65324,1637.8,1637.7,4.59145574]
[1693664583741,14.65324,1637.8,1637.7,4.79315809]
[1693664584548,23.47177736,1637.8,1637.7,4.79315809]
[1693664586546,23.47172633,1637.8,1637.7,4.79315809]
[1693664588454,23.47172633,1637.8,1637.7,4.59145574]
[1693664589157,23.47172633,1637.8,1637.7,4.79315809]
[1693664590551,23.47172633,1637.8,1637.7,4.59145574]
[1693664592153,23.47172633,1637.8,1637.7,4.79315809]
[1693664592553,23.47172633,1637.8,1637.7,4.59145574]
[1693664593353,14.65324,1637.8,1637.7,4.79315809]
[1693664593547,24.8727458,1637.8,1637.7,4.79315809]
[1693664593947,14.65324,1637.8,1637.7,4.79315809]
[1693664595354,23.47102828,1637.8,1637.7,4.79315809]
[1693664596758,23.47102828,1637.8,1637.7,4.59145574]
[1693664597159,23.47102828,1637.8,1637.7,4.79315809]
[1693664601057,14.65324,1637.8,1637.7,4.79315809]
[1693664601254,33.68496102,1637.8,1637.7,4.79315809]
[1693664601656,23.46545522,1637.8,1637.7,4.79315809]
[1693664604065,23.52655522,1637.8,1637.6,4.58058]
[1693664604256,10.4056419,1637.7,1637.5,2.4809]
[1693664604557,23.4586799,1637.6,1637.4,6.87165]
[1693664604759,4.8515419,1637.5,1637.4,4.58108]
[1693664605059,14.0134619,1637.5,1637.4,4.58108]
[1693664606258,14.0134619,1637.5,1637.4,4.59221811]
[1693664607464,14.0134619,1637.5,1637.4,2.30166811]
[1693664609057,14.0134619,1637.5,1637.4,4.59228811]
[1693664612657,14.0134619,1637.5,1637.4,2.30175811]
[1693664614467,14.0134619,1637.5,1637.4,4.59237811]
[1693664614667,14.0134619,1637.5,1637.4,2.30175811]
[1693664615872,14.0134619,1637.5,1637.4,4.59237811]
[1693664619072,14.0134619,1637.5,1637.4,2.30175811]
[1693664621274,14.0134619,1637.5,1637.4,4.59237811]
[1693664621877,19.5064619,1637.5,1637.4,4.59237811]
[1693664626780,19.5064619,1637.5,1637.4,0.01113811]
[1693664627384,19.5064619,1637.5,1637.3,11.92925]
[1693664627585,19.5064619,1637.5,1637.3,9.63855]
[1693664628390,19.5064619,1637.5,1637.4,0.01192155]
[1693664629289,19.5064619,1637.5,1637.3,11.92923]
[1693664629482,19.5064619,1637.5,1637.3,9.63855]
[1693664630483,19.5064619,1637.5,1637.3,11.92931]
[1693664636296,19.5064619,1637.5,1637.4,0.01149457]
[1693664636490,19.5064619,1637.5,1637.4,4.59273457]
[1693664638896,19.5064619,1637.5,1637.4,2.30211457]
[1693664639099,19.5064619,1637.5,1637.4,4.59273457]
[1693664641292,45.87348925,1637.5,1636.9,2.29124]
[1693664641491,45.87348925,1637.5,1636.9,9.50128]
[1693664641492,5.493,1637.0,1636.9,9.50128]
[1693664641797,10.07522,1637.1,1636.9,14.26423883]
[1693664641992,4.58222,1637.1,1636.9,19.75723883]
[1693664642187,2.86716352,1637.0,1636.9,19.75723883]
[1693664642393,8.85770838,1637.1,1636.9,19.75723883]
[1693664643193,8.85770838,1637.1,1636.9,22.37193883]
[1693664643396,11.7248719,1637.1,1636.9,22.37193883]
[1693664647399,11.7248719,1637.1,1636.9,20.08061883]
[1693664647595,14.0159819,1637.1,1636.9,20.08061883]
[1693664648494,5.493,1637.0,1636.9,7.53334]
[1693664648688,12.36654,1637.0,1636.9,7.53334]
[1693664648893,12.36654,1637.0,1636.9,9.82466]
[1693664649297,12.36654,1637.0,1636.9,9.83398656]
[1693664649494,12.36654,1637.0,1636.9,2.63672656]
[1693664649495,14.65772,1637.0,1636.9,2.63672656]
[1693664649798,14.65772,1637.0,1636.9,1e-08]
[1693664650394,14.65772,1637.0,1636.7,5.1158]
[1693664650599,5.5541,1636.8,1636.7,5.1158]
[1693664650800,19.5714819,1636.8,1636.7,5.1158]
[1693664650999,19.5714819,1636.8,1636.7,2.6077]
[1693664651195,0.0611,1636.7,1636.6,2.57]
[1693664651396,14.7205,1636.7,1636.6,2.57]
[1693664654503,14.7205,1636.7,1636.6,5.1759]
[1693664657405,14.7205,1636.7,1636.6,5.18492097]
[1693664662111,14.7205,1636.7,1636.5,2.29187]
[1693664662313,10.3445419,1636.6,1636.5,4.86317]
[1693664662505,19.5115019,1636.6,1636.5,4.86317]
[1693664663109,19.5726019,1636.6,1636.5,2.5713]
[1693664663907,17.2197619,1636.6,1636.5,9.64864235]
[1693664664208,10.07648,1636.6,1636.5,9.64864235]
[1693664664612,15.23538352,1636.6,1636.5,9.64864235]
[1693664665207,12.36822,1636.6,1636.5,9.64864235]
[1693664666610,15.23538352,1636.6,1636.5,9.64864235]
[1693664667215,12.36822,1636.6,1636.5,9.64864235]
[1693664667513,15.23538352,1636.6,1636.5,9.64864235]
[1693664667713,12.94364352,1636.6,1636.5,9.44694]
[1693664667913,12.94364352,1636.6,1636.5,9.64864235]
[1693664668615,15.23538352,1636.6,1636.5,9.64864235]
[1693664669817,15.23538352,1636.6,1636.5,9.44694]
[1693664670214,15.23538352,1636.6,1636.5,9.64864235]
[1693664670419,15.23538352,1636.6,1636.5,9.65733047]
[1693664671022,12.94364352,1636.6,1636.5,9.65733047]
[1693664671323,10.07648,1636.6,1636.5,9.65733047]
[1693664671520,12.36822,1636.6,1636.5,9.65733047]
[1693664673518,15.23538352,1636.6,1636.5,9.65733047]
[1693664673718,15.23538352,1636.6,1636.5,9.45562812]
[1693664674125,17.58822352,1636.6,1636.5,4.59244812]
[1693664677023,12.09522352,1636.6,1636.5,4.59244812]
[1693664677228,17.58822352,1636.6,1636.5,4.59244812]
[1693664685238,0.0611,1636.5,1636.4,4.58385]
[1693664685536,14.41411838,1636.5,1636.4,6.8758]
[1693664687739,16.70599838,1636.5,1636.4,4.58385]
[1693664688337,16.70599838,1636.5,1636.4,6.87587]
[1693664691253,14.41411838,1636.5,1636.4,6.87587]
[1693664691545,14.41411838,1636.5,1636.4,7.07757235]
[1693664691952,14.41411838,1636.5,1636.4,6.87587]
[1693664693446,14.41411838,1636.5,1636.4,6.88382462]
[1693664693641,14.41411838,1636.5,1636.4,7.08552697]
[1693664693841,7.53847838,1636.5,1636.4,9.37754697]
[1693664694049,10.13786,1636.5,1636.4,9.37754697]
[1693664694649,12.36864,1636.5,1636.4,7.08552697]
[1693664696349,12.86091983,1636.5,1636.4,7.08552697]
[1693664698256,15.72808335,1636.5,1636.4,7.08552697]
[1693664698753,18.08106335,1636.5,1636.4,4.59180462]
[1693664700364,18.08106335,1636.5,1636.4,6.88382462]
[1693664701070,15.78918335,1636.5,1636.4,6.66842052]
[1693664701364,18.08106335,1636.5,1636.4,4.37640052]
[1693664702859,12.92201983,1636.5,1636.4,4.57810287]
[1693664703061,10.56903983,1636.5,1636.4,6.87012287]
[1693664703264,12.86091983,1636.5,1636.4,6.87012287]
[1693664703869,15.72808335,1636.5,1636.4,6.87012287]
[1693664704063,15.72808335,1636.5,1636.4,6.66842052]
[1693664704360,18.08106335,1636.5,1636.4,4.59199462]
[1693664704757,18.08106335,1636.5,1636.4,0.00795462]
[1693664704957,1.98437838,1636.4,1636.3,9.684]
[1693664705166,7.47737838,1636.4,1636.3,7.39192]
[1693664705367,16.64545838,1636.4,1636.3,7.39929448]
[1693664705960,16.64545838,1636.4,1636.3,9.89315683]
[1693664706155,16.64545838,1636.4,1636.3,9.69145448]
[1693664707857,16.64545838,1636.4,1636.1,2.29241]
[1693664708064,5.493,1636.2,1636.1,7.19523]
[1693664708269,16.64657838,1636.2,1636.1,7.19523]
[1693664708569,16.64657838,1636.2,1636.1,7.20175802]
[1693664709870,16.70767838,1636.2,1636.1,4.90931802]
[1693664710463,16.70767838,1636.2,1636.1,7.20175802]
[1693664711371,16.70767838,1636.2,1636.1,4.90931802]
[1693664713876,16.70767838,1636.2,1636.1,7.20175802]
[1693664714674,16.70767838,1636.2,1636.1,4.90931802]
[1693664716573,16.70767838,1636.2,1636.1,2.29891802]
[1693664718272,16.70767838,1636.2,1636.1,0.00652802]
[1693664720277,16.70767838,1636.2,1636.1,2.29896802]
[1693664720878,16.70767838,1636.2,1636.1,0.00652802]
[1693664722679,16.70767838,1636.2,1636.1,2.29896802]
[1693664723480,16.70767838,1636.2,1636.1,0.00652802]
[1693664725386,16.70767838,1636.2,1636.1,2.29896802]
[1693664729594,16.70767838,1636.2,1636.1,2.50067037]
[1693664730091,16.70767838,1636.2,1636.1,2.29896802]
[1693664730693,16.70767838,1636.2,1636.1,2.50067037]
[1693664730989,16.70767838,1636.2,1636.1,2.29896802]
[1693664732802,16.70767838,1636.2,1636.1,4.79311037]
[1693664732995,14.7233,1636.2,1636.1,4.79311037]
[1693664734102,17.59046352,1636.2,1636.1,4.79311037]
[1693664734302,10.0776,1636.2,1636.1,9.37799037]
[1693664735703,12.3699,1636.2,1636.1,9.37799037]
[1693664739208,15.23706352,1636.2,1636.1,9.17628802]
[1693664739510,15.23706352,1636.2,1636.1,9.37799037]
[1693664740209,15.23706352,1636.2,1636.1,9.17628802]
[1693664740610,15.23706352,1636.2,1636.1,9.37799037]
[1693664741008,12.3699,1636.2,1636.1,9.37799037]
[1693664741413,15.23706352,1636.2,1636.1,9.37799037]
[1693664741602,12.3699,1636.2,1636.1,9.37799037]
[1693664742408,15.23706352,1636.2,1636.1,9.37799037]
[1693664742603,12.3699,1636.2,1636.1,9.37799037]
[1693664745613,15.23706352,1636.2,1636.1,9.37799037]
[1693664746003,12.3699,1636.2,1636.1,9.37799037]
[1693664747823,15.23706352,1636.2,1636.1,9.37799037]
[1693664748315,12.3699,1636.2,1636.1,9.37799037]
[1693664748814,15.23706352,1636.2,1636.1,9.37799037]
[1693664750314,12.3699,1636.2,1636.1,9.37799037]
[1693664751217,15.23706352,1636.2,1636.1,9.37799037]
[1693664751614,15.23706352,1636.2,1636.1,9.17628802]
[1693664752008,9.74406352,1636.2,1636.1,9.37799037]
[1693664752210,9.74406352,1636.2,1636.1,9.17628802]
[1693664752914,9.74406352,1636.2,1636.1,9.37799037]
[1693664753313,9.74406352,1636.2,1636.1,7.08555037]
[1693664754818,6.8769,1636.2,1636.1,7.08555037]
[1693664755013,6.938,1636.2,1636.1,7.08555037]
[1693664756421,17.59046352,1636.2,1636.1,6.88384802]
[1693664759124,17.59046352,1636.2,1636.1,7.08555037]
[1693664760321,14.7233,1636.2,1636.1,7.08555037]
[1693664760617,17.59046352,1636.2,1636.1,7.08555037]
[1693664763025,17.59046352,1636.2,1636.1,6.88384802]
[1693664763224,17.59046352,1636.2,1636.1,7.08555037]
[1693664763925,17.59046352,1636.2,1636.1,6.88384802]
[1693664764128,17.59046352,1636.2,1636.1,7.08555037]
[1693664764926,17.59046352,1636.2,1636.1,6.88384802]
[1693664765325,17.59046352,1636.2,1636.1,7.08555037]
[1693664766730,17.59046352,1636.2,1636.1,6.88384802]
[1693664767627,17.59046352,1636.2,1636.1,7.08555037]
[1693664768029,17.59046352,1636.2,1636.1,6.88384802]
[1693664768421,17.59046352,1636.2,1636.1,7.08555037]
[1693664769130,17.59046352,1636.2,1636.1,6.88384802]
[1693664769331,17.59046352,1636.2,1636.1,7.08555037]
[1693664770132,17.59046352,1636.2,1636.1,6.88384802]
[1693664770429,17.59046352,1636.2,1636.1,7.08555037]
[1693664770829,17.59046352,1636.2,1636.1,6.88384802]
[1693664771025,17.59046352,1636.2,1636.1,2.29896802]
[1693664772427,26.38230394,1636.2,1636.1,2.29896802]
[1693664772631,26.38230394,1636.2,1636.1,0.00652802]
[1693664773431,17.59046352,1636.2,1636.1,0.00652802]
[1693664774129,17.59046352,1636.2,1636.1,2.29896802]
[1693664774326,26.38230394,1636.2,1636.1,2.29896802]
[1693664774719,26.38230394,1636.2,1636.1,0.00652802]
[1693664778035,17.59046352,1636.2,1636.1,0.00652802]
[1693664783842,26.38230394,1636.2,1636.1,0.00652802]
[1693664784539,36.94234226,1636.2,1636.1,0.00652802]
[1693664785337,36.94231954,1636.2,1636.1,0.00652802]
[1693664785537,26.38230394,1636.2,1636.1,0.00652802]
[1693664786043,26.38230394,1636.2,1636.1,2.29896802]
[1693664787644,17.59046352,1636.2,1636.1,2.29896802]
[1693664788552,17.59046352,1636.2,1636.1,2.50067037]
[1693664789354,17.59046352,1636.2,1636.1,2.29896802]
[1693664789847,12.431,1636.2,1636.1,7.08555037]
[1693664791248,12.3699,1636.2,1636.1,7.08555037]
[1693664791443,6.8769,1636.2,1636.1,9.37799037]
[1693664797160,6.8769,1636.2,1636.1,9.24762027]
[1693664797358,9.74406352,1636.2,1636.1,9.25429482]
[1693664797561,6.8769,1636.2,1636.1,9.25429482]
[1693664803663,4.5846,1636.2,1636.1,9.25429482]
[1693664815267,7.45176352,1636.2,1636.1,9.25429482]
[1693664817176,7.51286352,1636.2,1636.1,9.25429482]
[1693664817571,4.6457,1636.2,1636.1,9.25429482]
[1693664819280,7.51286352,1636.2,1636.1,9.25429482]
[1693664819782,4.6457,1636.2,1636.1,9.25429482]
[1693664822282,7.51286352,1636.2,1636.1,9.25429482]
[1693664822676,4.6457,1636.2,1636.1,9.25429482]
[1693664825077,4.58441,1636.3,1636.1,9.25429482]
[1693664825281,4.58441,1636.3,1636.2,2.26993648]
[1693664825483,7.45157352,1636.3,1636.2,11.43913648]
[1693664825682,6.8766,1636.3,1636.2,13.86663648]
[1693664826386,6.8766,1636.3,1636.2,13.87330275]
[1693664828482,9.74376352,1636.3,1636.2,13.87330275]
[1693664828988,6.8766,1636.3,1636.2,13.87330275]
[1693664832285,17.41237389,1636.3,1636.2,13.87330275]
[1693664832789,6.8766,1636.3,1636.2,13.87330275]
[1693664833390,15.66280966,1636.3,1636.2,13.87330275]
[1693664836894,18.52997318,1636.3,1636.2,13.87330275]
[1693664837095,15.66280966,1636.3,1636.2,13.87330275]
[1693664837588,26.19858355,1636.3,1636.2,13.87330275]
[1693664837987,15.66280966,1636.3,1636.2,13.87330275]
[1693664840391,18.52997318,1636.3,1636.2,13.87330275]
[1693664840590,26.37626318,1636.3,1636.2,2.29896627]
[1693664840989,36.91203707,1636.3,1636.2,2.29896627]
[1693664841198,36.91203707,1636.3,1636.2,4.59126627]
[1693664844595,36.91203707,1636.3,1636.2,6.88356627]
[1693664846500,36.91203707,1636.3,1636.2,7.08526862]
[1693664846999,36.91203707,1636.3,1636.2,6.88356627]
[1693664847402,36.91203707,1636.3,1636.2,7.08526862]
[1693664848202,36.91203707,1636.3,1636.2,6.88356627]
[1693664850098,31.69155355,1636.3,1636.2,6.88356627]
[1693664850297,21.15577966,1636.3,1636.2,7.08526862]
[1693664850696,21.15577966,1636.3,1636.2,9.67206862]
[1693664851812,15.66277966,1636.3,1636.2,9.67206862]
[1693664854416,15.66277966,1636.3,1636.2,11.96437862]
[1693664854908,26.19855355,1636.3,1636.2,11.96437862]
[1693664855609,15.66277966,1636.3,1636.2,11.96437862]
[1693664856318,18.52994318,1636.3,1636.2,11.96437862]
[1693664857317,15.66277966,1636.3,1636.2,11.96437862]
[1693664857511,26.19855355,1636.3,1636.2,11.96437862]
[1693664857717,15.66277966,1636.3,1636.2,9.67206862]
[1693664858417,18.52994318,1636.3,1636.2,9.47036627]
[1693664858617,15.66277966,1636.3,1636.2,9.67206862]
[1693664860717,15.66277966,1636.3,1636.2,9.47036627]
[1693664860718,18.52994318,1636.3,1636.2,9.47036627]
[1693664862121,18.52994318,1636.3,1636.2,9.67206862]
[1693664862320,18.52994318,1636.3,1636.2,9.47036627]
[1693664862818,18.52994318,1636.3,1636.2,9.67206862]
[1693664863319,26.31513318,1636.3,1636.2,7.17806627]
[1693664863519,36.85090707,1636.3,1636.2,7.17806627]
[1693664868514,26.31513318,1636.3,1636.2,7.17806627]
[1693664868916,26.31513318,1636.3,1636.2,9.47036627]
[1693664870623,26.31513318,1636.3,1636.2,7.17806627]
[1693664871024,26.31513318,1636.3,1636.2,9.47036627]
[1693664871413,17.52892352,1636.3,1636.2,7.17806627]
[1693664871624,26.3148191,1636.3,1636.2,7.17806627]
[1693664877218,17.52892352,1636.3,1636.2,7.17806627]
[1693664877619,17.52892352,1636.3,1636.2,9.47037627]
[1693664878627,17.52892352,1636.3,1636.2,7.17806627]
[1693664878819,17.52892352,1636.3,1636.2,9.47037627]
[1693664880028,17.52892352,1636.3,1636.2,9.67207862]
[1693664880523,26.31440238,1636.3,1636.2,9.67207862]
[1693664880723,26.31440238,1636.3,1636.2,9.47037627]
[1693664881427,17.52892352,1636.3,1636.2,9.67207862]
[1693664881924,17.52892352,1636.3,1636.2,9.47037627]
[1693664882123,26.31288862,1636.3,1636.2,9.47037627]
[1693664882325,26.31288862,1636.3,1636.2,9.67207862]
[1693664882926,26.31288862,1636.3,1636.2,9.47037627]
[1693664883120,26.31288862,1636.3,1636.2,9.67207862]
[1693664884016,26.37398862,1636.3,1636.2,0.00666627]
[1693664884221,36.90976251,1636.3,1636.2,2.29896627]
[1693664884729,36.90976251,1636.3,1636.2,4.59126627]
[1693664884925,28.12579741,1636.3,1636.2,4.59126627]
[1693664885323,28.12579741,1636.3,1636.2,2.29896627]
[1693664885526,28.12579741,1636.3,1636.2,4.59126627]
[1693664886525,17.59002352,1636.3,1636.2,4.59126627]
[1693664890523,15.29783352,1636.3,1636.2,6.88357627]
[1693664890929,15.29783352,1636.3,1636.2,9.25697627]
[1693664891332,24.08260214,1636.3,1636.2,9.25697627]
[1693664892235,15.29783352,1636.3,1636.2,9.25697627]
[1693664893134,24.08441841,1636.3,1636.2,9.25697627]
[1693664894434,24.08441841,1636.3,1636.2,9.45867862]
[1693664895134,24.08441841,1636.3,1636.2,9.25697627]
[1693664895431,24.08441841,1636.3,1636.2,9.45867862]
[1693664896035,24.08441841,1636.3,1636.2,9.25697627]
[1693664896933,26.37660841,1636.3,1636.2,6.96466627]
[1693664897129,36.9123823,1636.3,1636.2,6.96466627]
[1693664898137,28.12579741,1636.3,1636.2,6.96466627]
[1693664898832,18.08228153,1636.3,1636.2,6.96466627]
[1693664901737,18.02118153,1636.3,1636.2,6.96466627]
[1693664908736,18.02118153,1636.3,1636.2,7.16636862]
[1693664910339,18.02118153,1636.3,1636.2,6.96466627]
[1693664911042,18.02118153,1636.3,1636.2,7.16636862]
[1693664911243,18.02118153,1636.3,1636.2,6.96466627]
[1693664913342,18.02118153,1636.3,1636.2,7.16636862]
[1693664913944,18.02118153,1636.3,1636.2,6.96466627]
[1693664914138,18.02118153,1636.3,1636.2,7.16636862]
[1693664914340,18.02118153,1636.3,1636.2,0.00666627]
[1693664914543,18.02118153,1636.3,1636.1,7.05911]
[1693664914745,16.26684583,1636.2,1636.1,7.05911]
[1693664914944,23.14377583,1636.2,1636.1,9.35151]
[1693664915346,33.67954972,1636.2,1636.1,9.35897917]
[1693664917545,33.67954972,1636.2,1636.1,9.56068152]
[1693664917746,35.97185972,1636.2,1636.1,9.35897917]
[1693664917946,35.97185972,1636.2,1636.1,7.06657917]
[1693664919444,27.18239227,1636.2,1636.1,7.06657917]
[1693664919646,27.18239227,1636.2,1636.1,4.77418917]
[1693664919647,16.64661838,1636.2,1636.1,4.77418917]
[1693664919856,16.64661838,1636.2,1636.1,7.06663917]
[1693664922048,16.64661838,1636.2,1636.1,7.26834152]
[1693664922252,16.64661838,1636.2,1636.1,7.06663917]
[1693664923356,16.70771838,1636.2,1636.1,7.06663917]
[1693664924356,16.70771838,1636.2,1636.1,7.26834152]
[1693664924755,16.70771838,1636.2,1636.1,7.06663917]
[1693664927159,16.70771838,1636.2,1636.1,7.26834152]
[1693664927956,16.70771838,1636.2,1636.1,7.06663917]
[1693664931955,16.70771838,1636.2,1636.1,7.26834152]
[1693664932958,14.72334,1636.2,1636.1,7.26834152]
[1693664933861,14.72334,1636.2,1636.1,7.06663917]
[1693664934560,14.72334,1636.2,1636.1,7.26834152]
[1693664935356,14.72334,1636.2,1636.1,4.77418917]
[1693664935561,14.72334,1636.2,1636.1,2.48186917]
[1693664935962,14.72334,1636.2,1636.1,4.77431917]
[1693664938865,14.72334,1636.2,1636.1,4.97602152]
[1693664940564,14.72334,1636.2,1636.1,7.26847152]
[1693664944567,14.72334,1636.2,1636.1,7.06676917]
[1693664944763,14.72334,1636.2,1636.1,7.26847152]
[1693664950967,14.72334,1636.2,1636.1,7.06676917]
[1693664951168,14.72334,1636.2,1636.1,7.26847152]
[1693664953169,14.72334,1636.2,1636.1,9.56092152]
[1693664968374,12.36993,1636.2,1636.1,9.56092152]